Cogmind - Beta 9.4 *** ADVENTURER MODE // 2020.07.30 @ 18:49:41 Player: Scyralis Result: Self-destructed Performance ------------- Evolutions (1) 500 Regions Visited (2) 400 Robots Destroyed (27) 135 Value Destroyed (604) 604 Prototype IDs (1) 20 Alien Tech Used (0) 0 Bonus (0) 0 TOTAL SCORE: 1659 Bonus ------- None Cogmind --------- Core Integrity 353/400 Matter 290/300 Energy 632/680 System Corruption 0% Temperature Cool (231) Movement Rolling (100) Location -9/Materials Parts ------- > --- POWER (1) -------- Heavy Ion Engine > --- PROPULSION (2) --- Compact Wheel Compact Wheel > --- UTILITY (4) ------ High-capacity Battery Structural Scanner Advanced Terrain Scanner ECM Suite > --- WEAPON (2) ------- Electrolaser Particle Cannon > --- INVENTORY (4) ---- (None) Peak State ------------ > --- POWER ------------ Heavy Ion Engine > --- PROPULSION ------- Compact Wheel Compact Wheel > --- UTILITY ---------- Improved Heat Sink High-capacity Battery Structural Scanner ECM Suite > --- WEAPON ----------- Electrolaser Particle Cannon > --- INVENTORY -------- Advanced Terrain Scanner [Rating: 16] Favorites ----------- Power Ion Engine Engine Ion Engine Propulsion Compact Wheel Wheel Compact Wheel Hover Unit Improved Hover Unit Utility High-capacity Battery Device Improved Heat Sink Storage High-capacity Battery Weapon EM Pulse Gun Energy Gun EM Pulse Gun Energy Cannon Particle Cannon Build | -11 -10 -9 ------- Run | Scr Mat Mat Slots Evolved 2 | . . 2 Power . | . . . Propulsion . | . . . Utility 2 | . . 2 Weapon . | . . . Parts Attached 31 | 7 10 14 Power 4 | 1 1 2 Engine 4 | 1 1 2 Core . | . . . Reactor . | . . . Propulsion 9 | 2 2 5 Treads . | . . . Leg . | . . . Wheel 7 | 2 2 3 Hover 2 | . . 2 Flight . | . . . Utility 9 | 2 3 4 Device 8 | 2 2 4 Storage 1 | . 1 . Processor . | . . . Hackware . | . . . Protection . | . . . Artifact . | . . . Weapon 9 | 2 4 3 Energy Gun 8 | 2 4 2 Energy Cannon 1 | . . 1 Ballistic Gun . | . . . Ballistic Cannon . | . . . Launcher . | . . . Special Weapon . | . . . Impact Weapon . | . . . Slashing Weapon . | . . . Piercing Weapon . | . . . Special Melee Weapon . | . . . Unidentified Prototypes 1 | . . 1 Parts Lost 3 | . 2 1 Power . | . . . Propulsion . | . . . Utility 1 | . . 1 Weapon 2 | . 2 . Highest Loss Streak 2 | . 2 1 Average Slot Usage (%) 96 | . 97 90 Engine 13 | . 14 10 Wheel 24 | . 27 13 Device 20 | . 16 32 Storage 11 | . 11 11 Energy Gun 24 | . 26 20 Naked Turns . | . . . Heaviest Build 22 | 11 14 22 Greatest Support 38 | 32 32 38 Greatest Overweight (x) 1 | . . 1 Average Overweight (x) . | . . . Largest Inventory Capacity 4 | 4 4 4 Average Capacity 4 | 4 4 4 Most Carried 4 | 2 4 4 Average Carried 2 | . 3 1 Final Capacity 4 | 4 4 4 Final Carried 4 | . 4 . Class Distribution -------------------- 76% | Mutant 20% | Infiltrator-Mutant 3% | Scavenger-Mutant Dominant Class ---------------- Mutant | -10/Materials Infiltrator-Mutant | -9/Materials Resources | -11 -10 -9 ----------- Run | Scr Mat Mat Matter Collected 500 | 270 100 130 Remotely 93 | 83 10 . Salvage Created 1110 | 96 678 336 Parts 77 | 11 51 15 Haulers Intercepted 2 | . 2 . Recyclers Shooed 6 | 1 3 2 Parts Field Recycled . | . . . Retrieved Matter . | . . . Parts Self-Destructed . | . . . Prevented . | . . . Kills | -11 -10 -9 ------- Run | Scr Mat Mat Combat Hostiles Destroyed 14 | . 10 4 Guns 13 | . 10 3 Cannons 1 | . . 1 Classes Destroyed 9 | 2 6 1 Worker 2 | . 1 1 Builder 1 | . 1 . Tunneler 2 | 2 . . Hauler 2 | . 2 . Recycler 3 | 1 1 1 Watcher 3 | . 3 . Swarmer 3 | . 3 . Grunt 8 | . 7 1 Sentry 3 | . . 3 Best Kill Streak 5 | 2 5 3 Combat Bots Only 2 | . 2 2 Max Kills in Single Turn 2 | 1 2 1 Gunslinging . | . . . Exploded . | . . . Melee . | . . . Uniques/NPCs Destroyed . | . . . Combat | -11 -10 -9 -------- Run | Scr Mat Mat Damage Taken 485 | . 264 221 Core 113 | . 66 47 Absorbed by Shields . | . . . Core Remaining (%) 86 | 100 73 . Volleys Fired 84 | 6 58 20 Largest 2 | 2 2 2 Hottest 131 | 90 90 131 Shots Fired 154 | 12 102 40 Gun 148 | 12 102 34 Cannon 6 | . . 6 Launcher . | . . . Special . | . . . Kinetic . | . . . Thermal 76 | 6 44 26 Explosive . | . . . Electromagnetic 78 | 6 58 14 Robot Hit Streak 31 | 4 27 31 Robot Miss Streak 3 | 2 3 . Penetration Max . | . . . Secondary Targets 1 | . 1 . Max Gunslinging Chain 1 | . 1 . Shots Hit Robots 117 | 7 80 30 Core Hits 44 | 4 31 9 Critical Hits . | . . . Critical Kills . | . . . Critical Parts Destroyed . | . . . Melee Attacks . | . . . Impact . | . . . Slashing . | . . . Piercing . | . . . Sneak Attacks . | . . . Combat Hostiles . | . . . Follow-up Attacks . | . . . Damage Inflicted 1755 | 96 1188 471 Guns 1478 | 74 1062 342 Cannons 129 | . . 129 Explosions 148 | 22 126 . Melee . | . . . Ramming . | . . . Kinetic . | . . . Thermal 803 | 46 404 353 Explosive . | . . . Electromagnetic 952 | 50 784 118 Impact . | . . . Slashing . | . . . Piercing . | . . . Highest Corruption . | . . . Average Corruption . | . . . Corruption Purged . | . . . Overload Shots . | . . . Overflow Damage . | . . . Projectiles . | . . . Explosions . | . . . Melee . | . . . Knockbacks . | . . . Impact . | . . . Kinetic . | . . . Secondary . | . . . Self-Inflicted Damage . | . . . Shots . | . . . Rammed . | . . . Targets Rammed . | . . . Kicked . | . . . Crushed . | . . . Highest Temperature 314 | 70 314 222 Average Temperature 69 | 30 82 54 Received Heat Transfer 261 | . 168 93 Siege Activations . | . . . Robots Corrupted . | . . . Combat Hostiles . | . . . Parts Fried 4 | . 3 1 Impact Corruptions . | . . . Robots Melted . | . . . Combat Hostiles . | . . . Parts Melted 2 | . 1 1 Heat Transferred 1890 | 74 1099 717 Parts Sabotaged . | . . . Parts Stolen . | . . . Parts Stripped . | . . . Power Chain Reactions 2 | 1 1 . Missiles Intercepted . | . . . Alert | -11 -10 -9 ------- Run | Scr Mat Mat Peak Influence 210 | 15 206 210 Average Influence 68 | 7 70 77 Maximum Alert Level 1 | . 1 1 Low Security (%) 99 | 100 99 98 Level 1 . | . . 1 Level 2 . | . . . Level 3 . | . . . Level 4 . | . . . Level 5 . | . . . High Security . | . . . Max Security . | . . . Squads Dispatched 6 | . 3 3 Investigation 5 | . 3 2 Extermination . | . . . Reinforcement 1 | . . 1 Assault . | . . . Garrison . | . . . Intercept . | . . . Construction Impeded . | . . . Haulers Reinforced . | . . . Stealth | -11 -10 -9 --------- Run | Scr Mat Mat Distress Signals 3 | . 2 1 Communications Jammed . | . . . Distress Signals . | . . . Times Spotted 26 | . 20 6 Peak Tracking Total 4 | . 3 4 Tactical Retreats 5 | . 4 1 Traps | -11 -10 -9 ------- Run | Scr Mat Mat Traps Triggered 3 | . 2 1 Indirectly . | . . . Trap Hack Attempts . | . . . Triggered . | . . . Disarmed . | . . . Reprogrammed . | . . . Reused . | . . . Traps Extracted . | . . . Installed . | . . . Triggered . | . . . Machines | -11 -10 -9 ---------- Run | Scr Mat Mat Machines Disabled 5 | . 3 2 Max in Single Turn 2 | . 2 1 Machines Sabotaged . | . . . Garrisons Compromised . | . . . Overloaded Fab Kills . | . . . Fab Network Shutdowns . | . . . Hacking | -11 -10 -9 --------- Run | Scr Mat Mat Machines Accessed 10 | . 7 3 Terminals 9 | . 6 3 Fabricators . | . . . Repair Stations 1 | . 1 . Recycling Units . | . . . Scanalyzers . | . . . Garrison Access . | . . . Total Hacks 30 | . 20 10 Successful 13 | . 10 3 Failed 16 | . 10 6 Catastrophic 2 | . 2 . Database Lockouts 2 | . . 2 Manual 25 | . 14 11 Terminals 28 | . 18 10 Fabricators . | . . . Repair Stations 2 | . 2 . Recycling Units . | . . . Scanalyzers . | . . . Garrison Access . | . . . Terminal Hacks 10 | . 7 3 Robot Schematic 3 | . 1 2 Robot Analysis 2 | . 2 . Unreport Threat 2 | . 2 . Locate Traps 1 | . 1 . Recall Investigation 1 | . . 1 Registered Prototypes 1 | . 1 . Fabricator Hacks . | . . . Repair Station Hacks 2 | . 2 . Scan Component 1 | . 1 . Repair 1 | . 1 . Recycling Unit Hacks . | . . . Scanalyzer . | . . . Garrison Access Hacks . | . . . Unauthorized Hacks 5 | . 2 3 Terminals 1 | . 1 . Detonate 1 | . 1 . Fabricators . | . . . Repair Stations . | . . . Recycling Units . | . . . Scanalyzers . | . . . Garrison Access . | . . . Data Cores Recovered . | . . . Used . | . . . Hacking Detections 10 | . 7 3 Full Trace Events 5 | . 5 . Feedback Events . | . . . Feedback Blocked . | . . . Robot Schematics Acquired 3 | . 1 2 Robots Built . | . . . Matter . | . . . Time . | . . . Total Robot Build Rating . | . . . Part Schematics Acquired . | . . . Parts Built . | . . . Matter . | . . . Time . | . . . Total Part Build Rating . | . . . Parts Repaired 1 | . 1 . Time 26 | . 26 . Parts Recycled . | . . . Recycled Matter . | . . . Retrieved Matter . | . . . Retrieved Components . | . . . Parts Scanalyzed . | . . . Part Schematics Acquired . | . . . Parts Damaged . | . . . Bothacking | -11 -10 -9 ------------ Run | Scr Mat Mat Used RIF Installer . | . . . Robots Hacked . | . . . Non-combat . | . . . Combat . | . . . Robot Hacks Applied . | . . . Relay Couplers Released . | . . . Robots Rewired . | . . . Allies Hacked . | . . . Hacks Repelled . | . . . Allies | -11 -10 -9 -------- Run | Scr Mat Mat Total Allies . | . . . Largest Group . | . . . Highest-Rated Group . | . . . Highest-Rated Ally . | . . . Total Orders . | . . . Ally Attacks . | . . . Total Damage . | . . . Kills . | . . . Allies Corrupted . | . . . Allies Melted . | . . . Intel | -11 -10 -9 ------- Run | Scr Mat Mat Robot Analysis Total 2 | . 2 . Derelict Logs Recovered . | . . . Drone Launches . | . . . Drone Recoveries . | . . . Exploration | -11 -10 -9 ------------- Run | Scr Mat Mat Turns Passed 1284 | 79 903 302 Spaces Moved 912 | 49 665 198 Core 6 | 6 . . Treads . | . . . Legs . | . . . Wheels 905 | 43 665 197 Hover 1 | . . 1 Flight . | . . . Fastest Speed 50 | 50 100 56 Average Speed 101 | 93 100 106 Slowest Speed 110 | 100 100 110 Overloaded Moves . | . . . Propulsion Burnouts . | . . . Robots Hopped . | . . . Cave-ins Triggered . | . . . Exploration Rate (%) 38 | 4 89 21 Regions Visited 2 Branch Regions . Pre-discovered Areas . | . . . Known Exits Taken . | . . . Unknown Exits Taken 2 | 1 1 . Scrap Searched . | . . . Spaces Dug . | . . . Terrain Destroyed 8 | 2 6 . Melee . | . . . Projectile . | . . . AOE 8 | 2 6 . Actions | -11 -10 -9 --------- Run | Scr Mat Mat Total 1130 | 70 805 255 Wait 45 | . 45 . Move 910 | 48 664 198 Hop . | . . . Pick Up 37 | 8 18 11 Fast Attach . | . . . Attach 29 | 7 9 13 Detach 2 | . 2 . Swap 2 | . 1 1 Drop 21 | 1 8 12 Fire 84 | 6 58 20 Melee . | . . . Ram . | . . . Kick . | . . . Crush . | . . . Escape Stasis . | . . . Rewire . | . . . Trap . | . . . Miscellaneous . | . . . Route ------- -11/Scrapyard -10/Materials (discovered 3 exits: *Mat x3) -9/Materials History --------- Turn | Location | Event 5 | -11/Scrapyard | Discovered new exit (range 16) 80 | -11/Scrapyard | Entered Materials 147 | -10/Materials | Discovered new exit (range 12) 307 | -10/Materials | Build established: Mutant 321 | -10/Materials | Discovered new exit (range 15) 637 | -10/Materials | Discovered new exit (range 16) 905 | -10/Materials | Repaired Com. Wheel 983 | -10/Materials | Entered another Materials area 983 | -9/Materials | Evolved 2 slots: Utility x2 1023 | -9/Materials | Central database locked down 1285 | -9/Materials | Self-destructed Last Messages --------------- 01132_ Terminal disabled. 01134_ U-05 Engineer lays Concrete. 01142_ Acquired Electrolaser. 01143_ Dropped Beam Rifle. 01145_ Dropped Tractor Beam. 01147_ Acquired Adv. Terrain Scanner. 01191_ Y-45 Defender destroyed. 01210_ Acquired 50 matter. 01214_ K-01 Serf collects debris. 01215_ K-01 Serf destroyed. 01235_ Acquired Particle Cannon. 01236_ Dropped EM Pulse Gun. 01248_ Destroyed Tractor Beam. 01251_ R-06 Scavenger destroyed. 01251_ ALERT: Hostiles spotted, dispatching reinforcements to Terminal M001. 01257_ Acquired Com. Wheel. 01259_ Acquired 20 matter. 01268_ Imp. Heat Sink destroyed. 01279_ Heat Sink melted. 01279_ G-34 Mercenary destroyed. Map ----- +----------------------------------------------------+ | ?????????????????????????????????????????????????? | | ?????????????????????????????????????????????????? | | ?????????????????????????????????????????????????? | | ?????????????????????????????????????????????????? | | ?????????????????????????????????????????????????? | | ?????????????????????????????????????????????????? | | ??????????????? !???????????????????????????????? | | ??????????????? ##?????????????????????????????? | | ??????????????? ?????????????????????????????? | | ??????????????? ?????????????????????????????? | | ??????????????? ?????????????????????????????? | | ????????????#??# #?????????????????????????????? | | ???????????????# # ????????????????????????????? | | ???????????????# #?????????????????????????????? | | ???????????????# #?????????????????????????????? | | ??????????#????# #?????????????????????????????? | | ?????????###???# #?????????????????????????????? | | ????????## ##### #?????????????????????????????? | | ????????# # ###########???????????????????? | | ????????#"" # # [ #???????????????????? | | ????????#"Y !! # # #???????????????????? | | #########"" ! =+% + ! #???????????????????? | | +%!!%! # # #???????????????????? | | ########! ! # ######g####???????? ??????????? | | #??????######## #????#%#???????????? #????????? | | #??????####### #####@########### ######???? | | #????? ??? | | #????? ??? | | #????? %! Y ??? | | #?????? ### ########### ######?????????? | | #??????? #### ##?????????# #??????????????? | | #?????? #??# #??????????# #??????????????? | | #?????? #??# #??????????# #??????? ??????? | | ###### #??# +??????????# #??????????????? | | ##"""# #??# #??????????# #??????????????? | | ##" "# #??# #?????????? #??????????????? | | #??? ??????????? ??????????????? | | #????????????????? ??????????????? | | #??? ????????????? ??????????????? | | #????????????????? ##?????????????? | | ## #?????????????????#+###??????????????? | | ## """ #????????????????????????????????????? | | #" """ #????????????????????????????????????? | | # """ #????????????????????????????????????? | | #" """ #????????????"???????????????????????? | | ## #????????????????????????????????????? | | ?# #????????????????????????????????????? | | ## #????????????????????????????????????? | | #????????????????????????????????????? | | #????????????????????????????????????? | +----------------------------------------------------+ Best States ------------- Heat Dissipation 42 Energy Generation 14 Energy Capacity 680 Matter Stores 300 Matter Capacity 300 Sight Range 16 Terrain Scan Range 20 Terrain Scan Density 10 ECM Strength 1 Additional Mass Support 6 Resistance: KI 20 Resistance: TH 20 Resistance: EX 20 Resistance: EM 20 Resistance: I 20 Resistance: S 20 Resistance: P 20 Evasion (%) 45 Offensive Hacking 10 Item Schematics ----------------- None Robot Schematics ------------------ S-10 Pest | -10/Materials | Hacked G-34 Mercenary | -9/Materials | Hacked Y-45 Defender | -9/Materials | Hacked Fabricated ------------ Nothing Alien Tech Used ----------------- None Achievements -------------- None Challenges ------------ None Game ------ Seed AssemblyShieldThrower Manual? 0 Play Time 00:14:47 Cumulative 155.7 hours Start 2020.07.30 @ 18:38:07 End 2020.07.30 @ 18:49:41 Sessions 1 Manual Loads 0 Difficulty Adventurer Special Mode None Game No. 73 Rogue 0 Adventurer 73 Explorer 0 Win Type - Total 1 Types 1/0/0/0/0/0/0 Lore% 29 Gallery% 52 Achievement% 38 Wizard Run 0 Options --------- ASCII 0 Keyboard 0 Movement Numpad Keybinds 0 Fullscreen 0 Font 12/Smallcaps Map View 83x54 Tactical HUD 1 Map Filters NONE Filters NONE Steam X RUN: 9869b1e6-83ae-4ac4-8b5a-04efa8902339